[Event "Early-Titled-Tuesday-Blitz-April-02-2024"]
[Site "Chess.com"]
[Date "2024.04.02"]
[Round "3"]
[White "NastyaHn"]
[Black "Djager97"]
[Result "1-0"]
[WhiteElo "2449"]
[BlackElo "2609"]
[TimeControl "180+1"]
[EndTime "8:28:26 PDT"]
[Termination "NastyaHn won by resignation"]

1. Nc3 {[%clk 0:03:00.9]} 1... e5 {[%clk 0:02:57.5]} 2. Nf3 {[%clk 0:03:00.3]}
2... Nc6 {[%clk 0:02:53.9]} 3. d4 {[%clk 0:03:00.1]} 3... exd4 {[%clk
0:02:43.7]} 4. Nxd4 {[%clk 0:03:00.1]} 4... Bc5 {[%clk 0:02:42.2]} 5. Be3 {[%clk
0:02:36.5]} 5... Bb6 {[%clk 0:02:29.7]} 6. g3 {[%clk 0:02:23.4]} 6... Nge7
{[%clk 0:02:27.2]} 7. Bg2 {[%clk 0:02:22.4]} 7... O-O {[%clk 0:02:26]} 8. O-O
{[%clk 0:02:22.5]} 8... Nxd4 {[%clk 0:02:23.8]} 9. Bxd4 {[%clk 0:02:22.4]} 9...
Nc6 {[%clk 0:02:17.3]} 10. Bxb6 {[%clk 0:02:15.8]} 10... axb6 {[%clk 0:02:17.2]}
11. a3 {[%clk 0:02:15.1]} 11... d6 {[%clk 0:02:16.9]} 12. Qd3 {[%clk 0:02:13.7]}
12... Bg4 {[%clk 0:02:10.1]} 13. f4 {[%clk 0:01:59.1]} 13... Qd7 {[%clk
0:02:02.9]} 14. e4 {[%clk 0:01:55.3]} 14... Rad8 {[%clk 0:01:43.8]} 15. Rae1
{[%clk 0:01:49.8]} 15... Bh3 {[%clk 0:01:20.5]} 16. Nd5 {[%clk 0:01:37.1]} 16...
Bxg2 {[%clk 0:01:20.4]} 17. Kxg2 {[%clk 0:01:37.1]} 17... Ne7 {[%clk 0:01:17.8]}
18. c4 {[%clk 0:01:28.1]} 18... Nxd5 {[%clk 0:01:14.6]} 19. cxd5 {[%clk
0:01:26.2]} 19... f5 {[%clk 0:01:03.4]} 20. e5 {[%clk 0:01:11.4]} 20... dxe5
{[%clk 0:01:03.1]} 21. Rxe5 {[%clk 0:01:11.2]} 21... c6 {[%clk 0:00:47.2]} 22.
Rd1 {[%clk 0:01:10.5]} 22... cxd5 {[%clk 0:00:37.7]} 23. Qxd5+ {[%clk
0:00:59.2]} 23... Qxd5+ {[%clk 0:00:37.7]} 24. Rexd5 {[%clk 0:00:58.2]} 24...
Rxd5 {[%clk 0:00:38.6]} 25. Rxd5 {[%clk 0:00:58.3]} 25... Rc8 {[%clk 0:00:39.5]}
26. Rb5 {[%clk 0:00:57.7]} 26... Rc6 {[%clk 0:00:39.1]} 27. Kf3 {[%clk
0:00:57.1]} 27... g6 {[%clk 0:00:39.3]} 28. h4 {[%clk 0:00:56.7]} 28... Kf7
{[%clk 0:00:38.3]} 29. Ke3 {[%clk 0:00:55.4]} 29... Ke6 {[%clk 0:00:28.7]} 30.
Re5+ {[%clk 0:00:28.1]} 30... Kd7 {[%clk 0:00:21.5]} 31. Rd5+ {[%clk 0:00:23.9]}
31... Kc7 {[%clk 0:00:19.9]} 32. Re5 {[%clk 0:00:23.8]} 32... Rc2 {[%clk
0:00:18.2]} 33. Re7+ {[%clk 0:00:22.7]} 33... Kc6 {[%clk 0:00:17.5]} 34. Rxh7
{[%clk 0:00:22.6]} 34... Rxb2 {[%clk 0:00:17.8]} 35. Rg7 {[%clk 0:00:19.6]}
35... Rb3+ {[%clk 0:00:17.8]} 36. Kd4 {[%clk 0:00:19.9]} 36... Rxg3 {[%clk
0:00:17.3]} 37. h5 {[%clk 0:00:20.3]} 37... Rg4 {[%clk 0:00:15.2]} 38. Rxg6+
{[%clk 0:00:19.1]} 38... Kd7 {[%clk 0:00:15.3]} 39. Rxg4 {[%clk 0:00:15]} 39...
fxg4 {[%clk 0:00:16.2]} 40. Ke3 {[%clk 0:00:15.3]} 40... Ke6 {[%clk 0:00:16.1]}
41. Kf2 {[%clk 0:00:15.7]} 41... Kf6 {[%clk 0:00:12.7]} 42. Kg3 {[%clk
0:00:14.7]} 42... Kf5 {[%clk 0:00:13]} 43. a4 {[%clk 0:00:11.7]} 43... b5 {[%clk
0:00:13.3]} 44. axb5 {[%clk 0:00:11.6]} 44... b6 {[%clk 0:00:13.8]} 45. h6
{[%clk 0:00:07.5]} 45... Kg6 {[%clk 0:00:13.8]} 46. Kxg4 {[%clk 0:00:08]} 46...
Kxh6 {[%clk 0:00:14.3]} 47. Kf5 {[%clk 0:00:08.5]} 47... Kg7 {[%clk 0:00:14.7]}
48. Ke6 {[%clk 0:00:09]} 48... Kf8 {[%clk 0:00:14.4]} 49. Kf6 {[%clk 0:00:09.3]}
1-0

[Event "Early-Titled-Tuesday-Blitz-April-02-2024"]
[Site "Chess.com"]
[Date "2024.04.02"]
[Round "3"]
[White "Zq1"]
[Black "N_I_Chess"]
[Result "1-0"]
[WhiteElo "2607"]
[BlackElo "2376"]
[TimeControl "180+1"]
[EndTime "8:28:26 PDT"]
[Termination "Zq1 won on time"]

1. d4 {[%clk 0:03:00.9]} 1... Nf6 {[%clk 0:02:54.6]} 2. c4 {[%clk 0:03:00.8]}
2... e6 {[%clk 0:02:52.4]} 3. g3 {[%clk 0:02:59.7]} 3... d5 {[%clk 0:02:46.2]}
4. Bg2 {[%clk 0:02:58.8]} 4... Bb4+ {[%clk 0:02:44.9]} 5. Nd2 {[%clk 0:02:57.5]}
5... O-O {[%clk 0:02:43.1]} 6. Nf3 {[%clk 0:02:56.5]} 6... Nc6 {[%clk
0:02:31.6]} 7. O-O {[%clk 0:02:53.2]} 7... dxc4 {[%clk 0:02:26.3]} 8. Nxc4
{[%clk 0:02:52]} 8... Qe7 {[%clk 0:02:22.9]} 9. a3 {[%clk 0:02:50.3]} 9... Bd6
{[%clk 0:02:19.5]} 10. b4 {[%clk 0:02:47.7]} 10... a6 {[%clk 0:02:11.6]} 11. Qc2
{[%clk 0:02:39.5]} 11... e5 {[%clk 0:02:03.3]} 12. dxe5 {[%clk 0:02:35.3]} 12...
Nxe5 {[%clk 0:02:00.7]} 13. Nfxe5 {[%clk 0:02:26.1]} 13... Bxe5 {[%clk
0:02:01.6]} 14. Nxe5 {[%clk 0:02:25.8]} 14... Qxe5 {[%clk 0:02:02.5]} 15. Bf4
{[%clk 0:02:24.9]} 15... Qe7 {[%clk 0:01:56.9]} 16. Rfd1 {[%clk 0:02:11.2]}
16... Re8 {[%clk 0:01:52.7]} 17. Bxc7 {[%clk 0:01:44.7]} 17... Be6 {[%clk
0:01:35.8]} 18. Bd6 {[%clk 0:01:39.4]} 18... Qd7 {[%clk 0:01:28.8]} 19. Be5
{[%clk 0:01:28.7]} 19... Qb5 {[%clk 0:01:16.6]} 20. Bxf6 {[%clk 0:01:21.7]}
20... gxf6 {[%clk 0:01:17.5]} 21. e3 {[%clk 0:01:15.9]} 21... Rac8 {[%clk
0:01:14.5]} 22. Qd3 {[%clk 0:01:15.5]} 22... Qxd3 {[%clk 0:01:01.6]} 23. Rxd3
{[%clk 0:01:14.4]} 23... Re7 {[%clk 0:00:59.4]} 24. Rad1 {[%clk 0:01:10.1]}
24... Kg7 {[%clk 0:00:51.9]} 25. h3 {[%clk 0:01:06.9]} 25... Rc2 {[%clk
0:00:45.8]} 26. g4 {[%clk 0:01:04.2]} 26... Rec7 {[%clk 0:00:44.6]} 27. Be4
{[%clk 0:01:01.4]} 27... Ra2 {[%clk 0:00:42.6]} 28. R1d2 {[%clk 0:00:57.1]}
28... Ra1+ {[%clk 0:00:41.8]} 29. Kg2 {[%clk 0:00:56.4]} 29... b5 {[%clk
0:00:34.9]} 30. Bf3 {[%clk 0:00:36.8]} 30... Rcc1 {[%clk 0:00:29.3]} 31. Rd1
{[%clk 0:00:30.8]} 31... Rxd1 {[%clk 0:00:28.1]} 32. Bxd1 {[%clk 0:00:29.8]}
32... Bc4 {[%clk 0:00:26.9]} 33. Rd6 {[%clk 0:00:19.2]} 33... Rxa3 {[%clk
0:00:26.7]} 34. Bf3 {[%clk 0:00:17.4]} 34... a5 {[%clk 0:00:25.9]} 35. bxa5
{[%clk 0:00:15.7]} 35... Rxa5 {[%clk 0:00:26.8]} 36. Rb6 {[%clk 0:00:15.3]}
36... Ra2 {[%clk 0:00:20.5]} 37. Be4 {[%clk 0:00:14.3]} 37... Rb2 {[%clk
0:00:18.9]} 38. h4 {[%clk 0:00:12.3]} 38... b4 {[%clk 0:00:15]} 39. Kg3 {[%clk
0:00:11.2]} 39... Be6 {[%clk 0:00:14]} 40. f4 {[%clk 0:00:09.7]} 40... b3 {[%clk
0:00:08.8]} 41. f5 {[%clk 0:00:09.5]} 41... Bc4 {[%clk 0:00:08.4]} 42. g5 {[%clk
0:00:09.5]} 42... Bf1 {[%clk 0:00:03.2]} 43. Rxf6 {[%clk 0:00:06.2]} 43... Re2
{[%clk 0:00:01.9]} 44. Kf3 {[%clk 0:00:05]} 44... b2 {[%clk 0:00:02.3]} 45. Rb6
{[%clk 0:00:04.2]} 45... Rh2 {[%clk 0:00:02.9]} 46. f6+ {[%clk 0:00:03.3]} 1-0

[Event "Early-Titled-Tuesday-Blitz-April-02-2024"]
[Site "Chess.com"]
[Date "2024.04.02"]
[Round "3"]
[White "ragnaroek66"]
[Black "ladytitan"]
[Result "1/2-1/2"]
[WhiteElo "2493"]
[BlackElo "2283"]
[TimeControl "180+1"]
[EndTime "8:28:26 PDT"]
[Termination "Game drawn by repetition"]

1. d4 {[%clk 0:02:58.6]} 1... d5 {[%clk 0:02:57.7]} 2. c4 {[%clk 0:02:58.8]}
2... e6 {[%clk 0:02:58.1]} 3. Nf3 {[%clk 0:02:59.1]} 3... Nf6 {[%clk 0:02:58]}
4. g3 {[%clk 0:02:59.7]} 4... Bb4+ {[%clk 0:02:55.7]} 5. Nbd2 {[%clk 0:02:59.1]}
5... O-O {[%clk 0:02:54.7]} 6. Bg2 {[%clk 0:02:59.4]} 6... Nbd7 {[%clk
0:02:47.8]} 7. O-O {[%clk 0:02:58.9]} 7... c5 {[%clk 0:02:44.1]} 8. cxd5 {[%clk
0:02:52.2]} 8... exd5 {[%clk 0:02:37.3]} 9. dxc5 {[%clk 0:02:48.6]} 9... Nxc5
{[%clk 0:02:27.8]} 10. a3 {[%clk 0:02:45.4]} 10... Bxd2 {[%clk 0:02:27.5]} 11.
Bxd2 {[%clk 0:02:46.3]} 11... Bf5 {[%clk 0:02:26.3]} 12. Nd4 {[%clk 0:02:38]}
12... Bg6 {[%clk 0:02:23]} 13. Rc1 {[%clk 0:02:30.8]} 13... Rc8 {[%clk
0:02:21.2]} 14. Bf4 {[%clk 0:02:22.4]} 14... Nfe4 {[%clk 0:02:15.2]} 15. Be3
{[%clk 0:02:11.7]} 15... Qe7 {[%clk 0:01:55.9]} 16. Qe1 {[%clk 0:02:09.2]} 16...
f5 {[%clk 0:01:50.6]} 17. Qb4 {[%clk 0:02:06.7]} 17... b6 {[%clk 0:01:40]} 18.
Rfd1 {[%clk 0:02:05.2]} 18... Kh8 {[%clk 0:01:37]} 19. Nb5 {[%clk 0:01:53.7]}
19... Rfd8 {[%clk 0:01:31.6]} 20. Nd4 {[%clk 0:01:44.2]} 20... Qf6 {[%clk
0:01:04.1]} 21. Nf3 {[%clk 0:01:39]} 21... a5 {[%clk 0:00:46.6]} 22. Qe1 {[%clk
0:01:30.8]} 22... h6 {[%clk 0:00:36.8]} 23. Bd4 {[%clk 0:01:30.4]} 23... Qf8
{[%clk 0:00:34]} 24. Ne5 {[%clk 0:01:30.5]} 24... Bh7 {[%clk 0:00:31.6]} 25. f3
{[%clk 0:01:30.4]} 25... Nb3 {[%clk 0:00:26.5]} 26. Rxc8 {[%clk 0:01:28.9]}
26... Rxc8 {[%clk 0:00:26.6]} 27. fxe4 {[%clk 0:01:26.1]} 27... fxe4 {[%clk
0:00:21.4]} 28. Qf2 {[%clk 0:01:10.6]} 28... Qe7 {[%clk 0:00:14]} 29. Qf7 {[%clk
0:01:05.6]} 29... Qg5 {[%clk 0:00:10.9]} 30. Qf4 {[%clk 0:01:05.1]} 30... Qe7
{[%clk 0:00:08.4]} 31. e3 {[%clk 0:01:02.2]} 31... Rf8 {[%clk 0:00:07.2]} 32.
Qg4 {[%clk 0:01:01.5]} 32... Bf5 {[%clk 0:00:06.2]} 33. Ng6+ {[%clk 0:00:59.4]}
33... Bxg6 {[%clk 0:00:05.3]} 34. Qxg6 {[%clk 0:01:00.3]} 34... Nxd4 {[%clk
0:00:04.5]} 35. exd4 {[%clk 0:00:54.8]} 35... Qc7 {[%clk 0:00:04.7]} 36. Rf1
{[%clk 0:00:44.6]} 36... Rxf1+ {[%clk 0:00:04.3]} 37. Bxf1 {[%clk 0:00:45.5]}
37... Qc2 {[%clk 0:00:04.2]} 38. Qe8+ {[%clk 0:00:42.3]} 38... Kh7 {[%clk
0:00:04.2]} 39. Qb5 {[%clk 0:00:41.8]} 39... Qd2 {[%clk 0:00:03.1]} 40. Qxd5
{[%clk 0:00:39.6]} 40... Qe3+ {[%clk 0:00:03.4]} 41. Kg2 {[%clk 0:00:38.6]}
41... Qf3+ {[%clk 0:00:03.4]} 42. Kg1 {[%clk 0:00:33.3]} 42... Qe3+ {[%clk
0:00:03.7]} 43. Kg2 {[%clk 0:00:33.2]} 43... Qf3+ {[%clk 0:00:04]} 44. Kh3
{[%clk 0:00:33.9]} 44... Qxf1+ {[%clk 0:00:03.3]} 45. Kg4 {[%clk 0:00:34.6]}
45... Qf3+ {[%clk 0:00:03.7]} 46. Kh3 {[%clk 0:00:34.4]} 46... Qf1+ {[%clk
0:00:03.2]} 47. Kh4 {[%clk 0:00:34.4]} 47... g5+ {[%clk 0:00:02.8]} 48. Kg4
{[%clk 0:00:33.1]} 48... Qf3+ {[%clk 0:00:02.2]} 49. Kh3 {[%clk 0:00:33.5]}
49... g4+ {[%clk 0:00:02.1]} 50. Kh4 {[%clk 0:00:33.5]} 50... Qf6+ {[%clk
0:00:02.2]} 51. Kxg4 {[%clk 0:00:34.1]} 51... Qf3+ {[%clk 0:00:02.1]} 52. Kh4
{[%clk 0:00:31.4]} 52... Qf6+ {[%clk 0:00:02.4]} 53. Kh3 {[%clk 0:00:31.5]}
53... Qf1+ {[%clk 0:00:02.7]} 54. Kg4 {[%clk 0:00:32.2]} 54... Qf3+ {[%clk
0:00:03]} 55. Kh4 {[%clk 0:00:31]} 55... Qf6+ {[%clk 0:00:03]} 56. Kg4 {[%clk
0:00:30]} 56... Qf3+ {[%clk 0:00:03.4]} 1/2-1/2

[Event "Early-Titled-Tuesday-Blitz-April-02-2024"]
[Site "Chess.com"]
[Date "2024.04.02"]
[Round "3"]
[White "Shield12"]
[Black "tomesao"]
[Result "1-0"]
[WhiteElo "3019"]
[BlackElo "2548"]
[TimeControl "180+1"]
[EndTime "8:28:31 PDT"]
[Termination "Shield12 won by resignation"]

1. b3 {[%clk 0:03:00.9]} 1... d5 {[%clk 0:02:51.1]} 2. Bb2 {[%clk 0:03:01.8]}
2... Nf6 {[%clk 0:02:51]} 3. g3 {[%clk 0:03:02]} 3... c6 {[%clk 0:02:50.6]} 4.
Bg2 {[%clk 0:03:02.5]} 4... g6 {[%clk 0:02:51.1]} 5. d3 {[%clk 0:03:03]} 5...
Bg7 {[%clk 0:02:51.3]} 6. Nd2 {[%clk 0:03:03.3]} 6... O-O {[%clk 0:02:51.3]} 7.
Ngf3 {[%clk 0:03:03.3]} 7... a5 {[%clk 0:02:49.6]} 8. a3 {[%clk 0:03:02]} 8...
Nbd7 {[%clk 0:02:49]} 9. O-O {[%clk 0:03:01.6]} 9... Re8 {[%clk 0:02:49]} 10. c4
{[%clk 0:02:59.5]} 10... e5 {[%clk 0:02:46.8]} 11. cxd5 {[%clk 0:02:59.5]} 11...
Nxd5 {[%clk 0:02:44.2]} 12. Nc4 {[%clk 0:02:58.1]} 12... Nc5 {[%clk 0:02:35.8]}
13. Ncxe5 {[%clk 0:02:46.6]} 13... a4 {[%clk 0:02:26.1]} 14. b4 {[%clk
0:02:44.9]} 14... Nb3 {[%clk 0:02:25.2]} 15. Rb1 {[%clk 0:02:44.8]} 15... Qb6
{[%clk 0:02:10.1]} 16. Nc4 {[%clk 0:02:42.2]} 16... Qa7 {[%clk 0:02:08.8]} 17.
Bxg7 {[%clk 0:02:38.1]} 17... Kxg7 {[%clk 0:02:08.4]} 18. Qc2 {[%clk 0:02:37.8]}
18... Bg4 {[%clk 0:02:02.1]} 19. Qb2+ {[%clk 0:02:37.7]} 19... Kg8 {[%clk
0:02:00.8]} 20. e4 {[%clk 0:02:35.3]} 20... Nb6 {[%clk 0:01:49]} 21. Ne3 {[%clk
0:02:33.4]} 21... Bxf3 {[%clk 0:01:43.8]} 22. Bxf3 {[%clk 0:02:34.3]} 22... Nd7
{[%clk 0:01:44.4]} 23. Nc2 {[%clk 0:02:29]} 23... Nd2 {[%clk 0:01:38.5]} 24. Be2
{[%clk 0:02:27.3]} 24... Nxf1 {[%clk 0:01:37.3]} 25. Rxf1 {[%clk 0:02:26.6]}
25... Rad8 {[%clk 0:01:31.2]} 26. Kg2 {[%clk 0:02:19.4]} 26... Nf8 {[%clk
0:01:30.9]} 27. Rd1 {[%clk 0:02:11.2]} 27... Rd6 {[%clk 0:01:13.6]} 28. e5
{[%clk 0:01:55.3]} 28... Rd5 {[%clk 0:01:08.5]} 29. d4 {[%clk 0:01:52.9]} 29...
Red8 {[%clk 0:01:04.2]} 30. Bc4 {[%clk 0:01:38.7]} 30... Rxe5 {[%clk 0:00:58.4]}
31. Ne3 {[%clk 0:01:32.3]} 31... Re7 {[%clk 0:00:55.4]} 32. d5 {[%clk
0:01:28.3]} 32... Rxe3 {[%clk 0:00:47.1]} 33. fxe3 {[%clk 0:01:28]} 33... Qxe3
{[%clk 0:00:48]} 34. Qf6 {[%clk 0:01:17.9]} 34... Qe4+ {[%clk 0:00:36.9]} 35.
Kh3 {[%clk 0:01:15.4]} 35... Qxc4 {[%clk 0:00:16.8]} 36. Qxd8 {[%clk 0:01:13.5]}
36... Qe2 {[%clk 0:00:16.8]} 37. Rc1 {[%clk 0:00:31.7]} 37... Qh5+ {[%clk
0:00:16.2]} 38. Qh4 {[%clk 0:00:30.9]} 38... Qxd5 {[%clk 0:00:16.1]} 39. Rf1
{[%clk 0:00:27.4]} 39... Qe6+ {[%clk 0:00:15.8]} 40. Qg4 {[%clk 0:00:26.3]}
40... f5 {[%clk 0:00:11.9]} 41. Qf3 {[%clk 0:00:25.8]} 41... Qe4 {[%clk
0:00:05.2]} 42. Qxe4 {[%clk 0:00:25.2]} 42... fxe4 {[%clk 0:00:06.1]} 43. Re1
{[%clk 0:00:25.6]} 43... Kf7 {[%clk 0:00:06.4]} 44. Rxe4 {[%clk 0:00:25.1]}
44... Ne6 {[%clk 0:00:06.8]} 45. Re5 {[%clk 0:00:24.7]} 45... b5 {[%clk
0:00:04.5]} 46. Kg4 {[%clk 0:00:23.2]} 46... Kf6 {[%clk 0:00:04.7]} 47. Re3
{[%clk 0:00:21.2]} 47... h5+ {[%clk 0:00:05]} 48. Kf3 {[%clk 0:00:20.6]} 48...
Nd4+ {[%clk 0:00:05.4]} 49. Ke4 {[%clk 0:00:20.5]} 49... Ne6 {[%clk 0:00:05.7]}
50. Rc3 {[%clk 0:00:20.5]} 50... Ng5+ {[%clk 0:00:04.1]} 51. Ke3 {[%clk
0:00:19.4]} 51... Ke5 {[%clk 0:00:03.4]} 52. Rc5+ {[%clk 0:00:18.7]} 52... Kf6
{[%clk 0:00:02.7]} 53. Rxc6+ {[%clk 0:00:19.2]} 1-0

[Event "Early-Titled-Tuesday-Blitz-April-02-2024"]
[Site "Chess.com"]
[Date "2024.04.02"]
[Round "3"]
[White "dianamirza"]
[Black "FredddieCroderg"]
[Result "0-1"]
[WhiteElo "1975"]
[BlackElo "2353"]
[TimeControl "180+1"]
[EndTime "8:28:32 PDT"]
[Termination "FredddieCroderg won on time"]

1. e4 {[%clk 0:02:59.9]} 1... c6 {[%clk 0:02:50.5]} 2. d4 {[%clk 0:02:56.7]}
2... d5 {[%clk 0:02:49.9]} 3. exd5 {[%clk 0:02:57.6]} 3... cxd5 {[%clk
0:02:49.3]} 4. Bd3 {[%clk 0:02:58.5]} 4... Nc6 {[%clk 0:02:48.7]} 5. c3 {[%clk
0:02:59.4]} 5... Qc7 {[%clk 0:02:48.7]} 6. g3 {[%clk 0:02:45.9]} 6... e6 {[%clk
0:02:43.1]} 7. Bf4 {[%clk 0:02:46.1]} 7... Bd6 {[%clk 0:02:42.9]} 8. Bxd6 {[%clk
0:02:42.1]} 8... Qxd6 {[%clk 0:02:42.9]} 9. Nf3 {[%clk 0:02:42.9]} 9... Nf6
{[%clk 0:02:41.8]} 10. Nbd2 {[%clk 0:02:43.3]} 10... O-O {[%clk 0:02:41.3]} 11.
O-O {[%clk 0:02:37.8]} 11... e5 {[%clk 0:02:38.7]} 12. Nxe5 {[%clk 0:02:36.8]}
12... Nxe5 {[%clk 0:02:38.6]} 13. dxe5 {[%clk 0:02:37.7]} 13... Qxe5 {[%clk
0:02:38.6]} 14. Nf3 {[%clk 0:02:36.6]} 14... Qc7 {[%clk 0:02:35.7]} 15. Qc2
{[%clk 0:02:33.6]} 15... Bg4 {[%clk 0:02:29.1]} 16. Nd4 {[%clk 0:02:30.4]} 16...
Rfe8 {[%clk 0:02:13.5]} 17. Rfe1 {[%clk 0:02:29.2]} 17... h5 {[%clk 0:02:10.7]}
18. Bf5 {[%clk 0:02:20.4]} 18... Re5 {[%clk 0:01:48.9]} 19. Bxg4 {[%clk
0:02:15.9]} 19... hxg4 {[%clk 0:01:46.3]} 20. Rxe5 {[%clk 0:02:08.9]} 20... Qxe5
{[%clk 0:01:45.7]} 21. Qe2 {[%clk 0:02:09.5]} 21... Qc7 {[%clk 0:01:33]} 22. Re1
{[%clk 0:02:07.1]} 22... Re8 {[%clk 0:01:28]} 23. Qd2 {[%clk 0:02:07]} 23... Ne4
{[%clk 0:01:21.8]} 24. Qe2 {[%clk 0:01:54.6]} 24... Qd7 {[%clk 0:01:12.1]} 25.
Qb5 {[%clk 0:01:50.1]} 25... Qxb5 {[%clk 0:01:00.9]} 26. Nxb5 {[%clk 0:01:51]}
26... Re6 {[%clk 0:00:55.2]} 27. a3 {[%clk 0:01:11.4]} 27... Rb6 {[%clk
0:00:47.7]} 28. a4 {[%clk 0:01:06]} 28... a6 {[%clk 0:00:44.7]} 29. Nc7 {[%clk
0:01:02]} 29... Rxb2 {[%clk 0:00:39.3]} 30. Nxd5 {[%clk 0:01:01.9]} 30... Nxf2
{[%clk 0:00:34.3]} 31. Re8+ {[%clk 0:00:53.9]} 31... Kh7 {[%clk 0:00:33]} 32.
Re7 {[%clk 0:00:49.9]} 32... Nh3+ {[%clk 0:00:32.6]} 33. Kf1 {[%clk 0:00:46.3]}
33... Kg6 {[%clk 0:00:25.9]} 34. Nf4+ {[%clk 0:00:28]} 34... Nxf4 {[%clk
0:00:24.9]} 35. gxf4 {[%clk 0:00:28.9]} 35... b5 {[%clk 0:00:23.2]} 36. axb5
{[%clk 0:00:26.5]} 36... axb5 {[%clk 0:00:23.1]} 37. Rb7 {[%clk 0:00:25.8]}
37... Rxh2 {[%clk 0:00:19.9]} 38. Rxb5 {[%clk 0:00:25.3]} 38... f6 {[%clk
0:00:18.3]} 39. c4 {[%clk 0:00:23.4]} 39... Rc2 {[%clk 0:00:16.6]} 40. c5 {[%clk
0:00:23.4]} 40... Kf5 {[%clk 0:00:14.7]} 41. c6+ {[%clk 0:00:11]} 41... Kxf4
{[%clk 0:00:14.6]} 42. Rb7 {[%clk 0:00:11.5]} 42... f5 {[%clk 0:00:10.7]} 43.
Rxg7 {[%clk 0:00:08.8]} 43... Rxc6 {[%clk 0:00:09.6]} 44. Ra7 {[%clk 0:00:04.6]}
44... Rc2 {[%clk 0:00:09.1]} 45. Ra4+ {[%clk 0:00:04.1]} 45... Kg5 {[%clk
0:00:09]} 46. Ra5 {[%clk 0:00:04.1]} 46... g3 {[%clk 0:00:08.3]} 47. Kg1 {[%clk
0:00:04.1]} 47... Kg4 {[%clk 0:00:08.1]} 48. Ra4+ {[%clk 0:00:04.2]} 48... f4
{[%clk 0:00:08.1]} 49. Ra8 {[%clk 0:00:04.5]} 49... f3 {[%clk 0:00:06.6]} 50.
Ra4+ {[%clk 0:00:03.9]} 50... Kh3 {[%clk 0:00:05.9]} 0-1

[Event "Early-Titled-Tuesday-Blitz-April-02-2024"]
[Site "Chess.com"]
[Date "2024.04.02"]
[Round "3"]
[White "chito89"]
[Black "PolandHussars"]
[Result "0-1"]
[WhiteElo "2805"]
[BlackElo "2583"]
[TimeControl "180+1"]
[EndTime "8:28:33 PDT"]
[Termination "PolandHussars won on time"]

1. c4 {[%clk 0:02:34.3]} 1... e5 {[%clk 0:02:59.5]} 2. Nc3 {[%clk 0:02:33.9]}
2... d6 {[%clk 0:02:59.9]} 3. g3 {[%clk 0:02:33]} 3... Be6 {[%clk 0:02:59.4]} 4.
Bg2 {[%clk 0:02:23.8]} 4... c6 {[%clk 0:02:59.3]} 5. b3 {[%clk 0:02:19.6]} 5...
Be7 {[%clk 0:02:58.3]} 6. d4 {[%clk 0:02:05.8]} 6... exd4 {[%clk 0:02:53.2]} 7.
Qxd4 {[%clk 0:02:06.7]} 7... Bf6 {[%clk 0:02:52.4]} 8. Qd2 {[%clk 0:02:06.8]}
8... Ne7 {[%clk 0:02:49.4]} 9. Bb2 {[%clk 0:02:05.9]} 9... d5 {[%clk 0:02:46.6]}
10. cxd5 {[%clk 0:01:59.1]} 10... Nxd5 {[%clk 0:02:45.8]} 11. Nxd5 {[%clk
0:01:49.2]} 11... cxd5 {[%clk 0:02:45.5]} 12. Nf3 {[%clk 0:01:42]} 12... Bxb2
{[%clk 0:02:43.1]} 13. Qxb2 {[%clk 0:01:41.6]} 13... Qa5+ {[%clk 0:02:43.6]} 14.
Qd2 {[%clk 0:01:41.6]} 14... Nc6 {[%clk 0:02:40.6]} 15. Qxa5 {[%clk 0:01:35.3]}
15... Nxa5 {[%clk 0:02:41.5]} 16. Nd4 {[%clk 0:01:29]} 16... Rc8 {[%clk
0:02:38.4]} 17. Kd2 {[%clk 0:01:28.4]} 17... Ke7 {[%clk 0:02:35.2]} 18. Rhc1
{[%clk 0:01:25.8]} 18... Nc6 {[%clk 0:02:35]} 19. Nxe6 {[%clk 0:01:16.7]} 19...
fxe6 {[%clk 0:02:33.9]} 20. e4 {[%clk 0:01:12.8]} 20... Kd6 {[%clk 0:01:52.8]}
21. exd5 {[%clk 0:01:06.8]} 21... exd5 {[%clk 0:01:53.7]} 22. Rc3 {[%clk
0:01:02.7]} 22... Ne5 {[%clk 0:01:49.6]} 23. Rac1 {[%clk 0:01:01.3]} 23... Rc6
{[%clk 0:01:47.9]} 24. f4 {[%clk 0:00:59.4]} 24... Ng4 {[%clk 0:01:47.7]} 25.
Rd3 {[%clk 0:00:53.8]} 25... Nf6 {[%clk 0:01:44.6]} 26. b4 {[%clk 0:00:44.7]}
26... Rxc1 {[%clk 0:01:40.9]} 27. Kxc1 {[%clk 0:00:45.6]} 27... Rc8+ {[%clk
0:01:37.6]} 28. Kd2 {[%clk 0:00:41.6]} 28... Rc4 {[%clk 0:01:37.4]} 29. a3
{[%clk 0:00:41.4]} 29... h5 {[%clk 0:01:35]} 30. Re3 {[%clk 0:00:39.3]} 30...
Rd4+ {[%clk 0:01:20.6]} 31. Kc3 {[%clk 0:00:36.5]} 31... Rc4+ {[%clk 0:01:20.7]}
32. Kd2 {[%clk 0:00:36.4]} 32... Rd4+ {[%clk 0:01:20.8]} 33. Rd3 {[%clk
0:00:12.5]} 33... Rc4 {[%clk 0:01:15.7]} 34. Bf3 {[%clk 0:00:12.3]} 34... b6
{[%clk 0:01:10.9]} 35. Re3 {[%clk 0:00:12]} 35... Rd4+ {[%clk 0:01:10.1]} 36.
Kc3 {[%clk 0:00:12.5]} 36... Rc4+ {[%clk 0:01:10.1]} 37. Kd2 {[%clk 0:00:13.1]}
37... Rd4+ {[%clk 0:01:10.1]} 38. Kc3 {[%clk 0:00:13.7]} 38... Rc4+ {[%clk
0:01:10.3]} 39. Kb3 {[%clk 0:00:14.4]} 39... Rd4 {[%clk 0:01:06.1]} 40. Kc2
{[%clk 0:00:08.4]} 40... Rc4+ {[%clk 0:01:05.7]} 41. Rc3 {[%clk 0:00:09]} 41...
Rd4 {[%clk 0:00:46.3]} 42. Rc8 {[%clk 0:00:08.6]} 42... Rc4+ {[%clk 0:00:46.1]}
43. Rxc4 {[%clk 0:00:07.9]} 43... dxc4 {[%clk 0:00:47]} 44. Kc3 {[%clk
0:00:08.8]} 44... b5 {[%clk 0:00:46.9]} 45. Kd4 {[%clk 0:00:08.7]} 45... Ng4
{[%clk 0:00:43.3]} 46. h3 {[%clk 0:00:05.1]} 46... Nf6 {[%clk 0:00:40.9]} 47.
Bb7 {[%clk 0:00:02.2]} 47... h4 {[%clk 0:00:34.9]} 48. g4 {[%clk 0:00:01.1]}
48... Nd7 {[%clk 0:00:31.6]} 49. Be4 {[%clk 0:00:01.8]} 49... Nb6 {[%clk
0:00:27.4]} 50. Bg6 {[%clk 0:00:02]} 50... Na4 {[%clk 0:00:27.1]} 51. g5 {[%clk
0:00:02]} 51... Nb6 {[%clk 0:00:22.6]} 52. Bf5 {[%clk 0:00:01.5]} 52... Nd5
{[%clk 0:00:22.3]} 53. Be4 {[%clk 0:00:01.6]} 53... Nxf4 {[%clk 0:00:22.4]} 0-1